[Event "FIDE World School-ch O-15 2025"]
[Site "Vrnjacka Banja"]
[Date "2025.03.28"]
[Round "9.7"]
[White "Talgatov, Nazar"]
[Black "Khaleev, Timofey D"]
[Result "1-0"]
[Annotator "NA RC"]
[ECO "B06"]
[WhiteElo "2083"]
[BlackElo "1919"]
[PlyCount "95"]
[EventDate "2025.03.19"]
[EventType "swiss"]
[EventCountry "SRB"]
[SourceTitle "playchess.com"]
[Source "ChessBase"]
[SourceQuality "1"]
[TimeControl "5400+30"]

1. e4 {[%emt 0:00:29]} c5 {[%emt 0:00:04]} 2. Nf3 {[%emt 0:00:30]} g6 {[%emt 0:00:05]} 3. c3 {[%emt 0:00:43]} d5 {[%emt 0:00:08]} 4. exd5 {[%emt 0:00:24]} Qxd5 {[%emt 0:00:06]} 5. d4 {[%emt 0:00:03]} Bg7 {[%emt 0:00:10]} 6. Nbd2 {[%emt 0:00:07]} cxd4 {[%emt 0:00:46]} 7. Bc4 {[%emt 0:00:02]} Qd6 {[%emt 0:03:33]} 8. Nxd4 {[%emt 0:04:00]} Nf6 {[%emt 0:01:14]} 9. O-O {[%emt 0:01:21]} O-O {[%emt 0:00:19]} 10. N2f3 {[%emt 0:00:06]} Nc6 {[%emt 0:10:53]} 11. h3 {[%emt 0:03:24]} b6 {[%emt 0:24:00]} 12. Re1 {[%emt 0:02:15]} Nxd4 {[%emt 0:05:28]} 13. Qxd4 {[%emt 0:02:09]} Qxd4 {[%emt 0:00:33]} 14. Nxd4 {[%emt 0:00:08]} e6 {[%emt 0:00:53]} 15. a4 {[%emt 0:01:21]} Bb7 {[%emt 0:02:10]} 16. a5 {[%emt 0:02:18]} bxa5 $11 {[%emt 0:01:56]} 17. Rxa5 {[%emt 0:00:03]} a6 {[%emt 0:13:22]} 18. Bf1 {[%emt 0:07:04]} Rfc8 {[%emt 0:04:05]} 19. Nb3 {[%emt 0:05:16]} Bf8 {[%emt 0:02:00]} 20. Be3 {[%emt 0:01:31]} Be7 {[%emt 0:06:40]} 21. Nc5 {[%emt 0:02:12]} Bxc5 {[%emt 0:01:22]} 22. Bxc5 {[%emt 0:00:30]} Ne4 {[%emt 0:03:25]} 23. Be3 {[%emt 0:03:07]} Nd6 {[%emt 0:00:37]} 24. Ra4 {[%emt 0:02:03]} Bd5 {[%emt 0:10:36]} 25. Rxa6 {[%emt 0:04:43]} Rxa6 {[%emt 0:00:23]} 26. Bxa6 {[%emt 0:00:03]} Ra8 {[%emt 0:00:26]} 27. Bf1 {[%emt 0:06:37]} Bb3 {[%emt 0:00:32]} 28. Bd4 {[%emt 0:03:17]} Nc4 {[%emt 0:01:59]} 29. Bxc4 {[%emt 0:03:37]} Bxc4 {[%emt 0:00:09]} 30. b4 {[%emt 0:00:17]} Kf8 {[%emt 0:01:12]} 31. Bf6 {[%emt 0:00:49]} Ke8 {[%emt 0:01:27]} 32. Rd1 {[%emt 0:00:50]} Bd5 {[%emt 0:00:58]} 33. b5 {[%emt 0:02:58]} Ra4 {[%emt 0:00:40]} 34. Kh2 {[%emt 0:07:59]} Kd7 {[%emt 0:00:31]} 35. Be5 {[%emt 0:00:11]} Kc8 {[%emt 0:01:29]} 36. b6 {[%emt 0:05:38]} Kb7 {[%emt 0:00:43]} 37. Bd4 {[%emt 0:00:13]} Ra2 {[%emt 0:01:27]} 38. Be3 {[%emt 0:00:31]} Ra4 {[%emt 0:00:20]} 39. Rb1 {[%emt 0:00:52]} Bc6 {[%emt 0:00:34]} 40. Rb2 {[%emt 0:01:03]} Kc8 {[%emt 0:00:47]} 41. g4 {[%emt 0:01:21]} Ra1 {[%emt 0:01:29]} 42. g5 {[%emt 0:02:11]} e5 {[%emt 0:01:20]} 43. Rd2 {[%emt 0:01:47]} Rh1+ {[%emt 0:00:34]} 44. Kg3 {[%emt 0:00:06]} Rg1+ {[%emt 0:00:32]} 45. Kh4 {[%emt 0:00:10]} h6 {[%emt 0:00:29]} 46. gxh6 {[%emt 0:02:30]} f6 {[%emt 0:00:09]} 47. h7 {[%emt 0:01:57]} Be8 {[%emt 0:00:07]} 48. f4 {[%emt 0:00:03]} 1-0

[Event "FIDE World School-ch O-15 2025"]
[Site "Vrnjacka Banja"]
[Date "2025.03.28"]
[Round "9.8"]
[White "Qusaiyn, Altynbek"]
[Black "Leu, Dragos Stefan"]
[Result "0-1"]
[Annotator "NA RC"]
[ECO "B21"]
[WhiteElo "1972"]
[BlackElo "2165"]
[PlyCount "98"]
[EventDate "2025.03.19"]
[EventType "swiss"]
[EventCountry "SRB"]
[SourceTitle "playchess.com"]
[Source "ChessBase"]
[SourceQuality "1"]
[TimeControl "5400+30"]

1. e4 {[%emt 0:00:06]} c5 {[%emt 0:00:05]} 2. d4 {[%emt 0:00:08]} cxd4 {[%emt 0:00:08]} 3. Qxd4 {[%emt 0:00:03]} Nc6 {[%emt 0:00:54]} 4. Qd3 {[%emt 0:00:05]} d6 {[%emt 0:03:31]} 5. Nc3 {[%emt 0:00:04]} Nf6 {[%emt 0:22:03]} 6. Nf3 {[%emt 0:00:13]} a6 $11 {[%emt 0:10:07]} 7. Be2 {[%emt 0:03:52]} g6 {[%emt 0:11:03]} 8. Bg5 {[%emt 0:05:20]} Bg7 {[%emt 0:01:18]} 9. O-O {[%emt 0:00:15]} h6 {[%emt 0:02:33]} 10. Bf4 {[%emt 0:15:01]} O-O {[%emt 0:01:41]} 11. h3 {[%emt 0:02:21]} b5 {[%emt 0:06:04]} 12. Nd5 {[%emt 0:02:40]} Nd7 {[%emt 0:06:32]} 13. c3 {[%emt 0:03:26]} Nce5 {[%emt 0:03:00]} 14. Nxe5 {[%emt 0:00:30]} dxe5 {[%emt 0:01:10]} 15. Be3 {[%emt 0:02:44]} e6 {[%emt 0:02:12]} 16. Nb4 {[%emt 0:01:37]} Qc7 {[%emt 0:00:09]} 17. f3 {[%emt 0:03:06]} Nc5 {[%emt 0:04:41]} 18. Qc2 {[%emt 0:02:42]} Bb7 {[%emt 0:01:16]} 19. Nd3 {[%emt 0:00:44]} Na4 {[%emt 0:00:20]} 20. Rac1 {[%emt 0:06:19]} Rac8 {[%emt 0:00:20]} 21. Rfd1 {[%emt 0:05:11]} f5 {[%emt 0:05:17]} 22. exf5 {[%emt 0:04:27]} gxf5 {[%emt 0:06:32]} 23. Ne1 {[%emt 0:15:33]} Nb6 {[%emt 0:01:28]} 24. Bf2 {[%emt 0:01:14]} Rf7 {[%emt 0:01:11]} 25. b3 {[%emt 0:03:34]} Bf8 {[%emt 0:01:08]} 26. c4 {[%emt 0:02:32]} bxc4 {[%emt 0:00:42]} 27. bxc4 {[%emt 0:00:04]} Bc5 {[%emt 0:01:46]} 28. Qd2 {[%emt 0:02:22]} Kh7 {[%emt 0:01:00]} 29. Nd3 {[%emt 0:00:30]} Be7 {[%emt 0:02:50]} 30. Nxe5 {[%emt 0:00:35]} Qxe5 {[%emt 0:00:20]} 31. Bxb6 {[%emt 0:00:07]} Rg8 {[%emt 0:00:04]} 32. Bf1 {[%emt 0:16:41]} Qg3 {[%emt 0:03:55]} 33. Qf2 {[%emt 0:01:51]} Qxh3 {[%emt 0:00:11]} 34. Rd7 {[%emt 0:00:24]} Qxf3 {[%emt 0:01:21]} 35. Re1 {[%emt 0:01:06]} Qxf2+ {[%emt 0:00:34]} 36. Bxf2 {[%emt 0:00:17]} Be4 {[%emt 0:00:21]} 37. c5 {[%emt 0:00:39]} Rfg7 {[%emt 0:00:41]} 38. g3 {[%emt 0:00:22]} h5 {[%emt 0:00:29]} 39. Kh2 {[%emt 0:00:32]} Bf6 {[%emt 0:00:32]} 40. Rxg7+ {[%emt 0:00:38]} Rxg7 {[%emt 0:00:01]} 41. Bxa6 {[%emt 0:00:23]} h4 {[%emt 0:00:43]} 42. Kh3 {[%emt 0:00:37]} Be5 {[%emt 0:00:42]} 43. Re3 {[%emt 0:00:32]} Rg6 {[%emt 0:00:33]} 44. Bf1 {[%emt 0:00:30]} hxg3 {[%emt 0:00:08]} 45. Bxg3 {[%emt 0:00:19]} Rh6+ {[%emt 0:00:08]} 46. Bh4 {[%emt 0:00:21]} Bf6 {[%emt 0:00:06]} 47. Kg3 {[%emt 0:00:16]} Rxh4 {[%emt 0:02:10]} 48. Ra3 {[%emt 0:00:24]} Rg4+ {[%emt 0:00:00]} 49. Kf2 {[%emt 0:00:05]} Bd4+ {[%emt 0:00:00]} 0-1